[Event "Late-Titled-Tuesday-Blitz-January-16-2024"]
[Site "Chess.com"]
[Date "2024.01.16"]
[Round "8"]
[White "Navyblue1"]
[Black "RianKapriaga"]
[Result "0-1"]
[WhiteElo "2178"]
[BlackElo "2353"]
[TimeControl "180+1"]
[EndTime "15:26:45 PST"]
[Termination "RianKapriaga won by resignation"]

1. d4 {[%clk 0:02:54.3]} 1... Nf6 {[%clk 0:02:54.8]} 2. c4 {[%clk 0:02:47.9]}
2... e6 {[%clk 0:02:54.9]} 3. Nf3 {[%clk 0:02:42.4]} 3... d5 {[%clk 0:02:53.5]}
4. Nc3 {[%clk 0:02:42.2]} 4... Be7 {[%clk 0:02:52.7]} 5. cxd5 {[%clk 0:02:21.1]}
5... exd5 {[%clk 0:02:52.1]} 6. Bg5 {[%clk 0:02:20.3]} 6... h6 {[%clk
0:02:51.9]} 7. Bh4 {[%clk 0:02:19.7]} 7... O-O {[%clk 0:02:52.3]} 8. e3 {[%clk
0:02:19.2]} 8... c6 {[%clk 0:02:52.4]} 9. Qc2 {[%clk 0:02:17.2]} 9... Re8 {[%clk
0:02:51.7]} 10. Bd3 {[%clk 0:02:17.1]} 10... Ne4 {[%clk 0:02:51.7]} 11. Bxe7
{[%clk 0:02:14.4]} 11... Qxe7 {[%clk 0:02:52.6]} 12. O-O {[%clk 0:02:14.2]}
12... Bf5 {[%clk 0:02:48.3]} 13. Nd2 {[%clk 0:02:10.8]} 13... Nxd2 {[%clk
0:02:46.2]} 14. Qxd2 {[%clk 0:02:09.3]} 14... Bxd3 {[%clk 0:02:45.6]} 15. Qxd3
{[%clk 0:02:10.2]} 15... Nd7 {[%clk 0:02:45.6]} 16. Rab1 {[%clk 0:01:56.2]}
16... a5 {[%clk 0:02:44]} 17. Rfc1 {[%clk 0:01:42.8]} 17... Qg5 {[%clk
0:02:38.4]} 18. h3 {[%clk 0:01:31.8]} 18... Re6 {[%clk 0:02:36.9]} 19. Rc2
{[%clk 0:01:10.7]} 19... Rae8 {[%clk 0:02:29.9]} 20. Nd1 {[%clk 0:01:02.3]}
20... Rg6 {[%clk 0:02:27.1]} 21. f4 {[%clk 0:00:49.6]} 21... Qg3 {[%clk
0:02:21.5]} 22. Kh1 {[%clk 0:00:22.7]} 22... Nf6 {[%clk 0:02:19.5]} 23. Qf1
{[%clk 0:00:16.6]} 23... Ne4 {[%clk 0:02:08.9]} 24. Re2 {[%clk 0:00:15.8]} 24...
Nd6 {[%clk 0:02:05.6]} 25. b4 {[%clk 0:00:14.2]} 25... axb4 {[%clk 0:02:01]} 26.
Rxb4 {[%clk 0:00:13.6]} 26... b5 {[%clk 0:02:00.9]} 27. Rb3 {[%clk 0:00:13.6]}
27... Ne4 {[%clk 0:01:52.6]} 28. Qf3 {[%clk 0:00:11.9]} 28... Qxf3 {[%clk
0:01:50.2]} 29. gxf3 {[%clk 0:00:10.5]} 29... Ng3+ {[%clk 0:01:50.7]} 30. Kh2
{[%clk 0:00:10.7]} 30... Nxe2 {[%clk 0:01:51.1]} 0-1

[Event "Late-Titled-Tuesday-Blitz-January-16-2024"]
[Site "Chess.com"]
[Date "2024.01.16"]
[Round "8"]
[White "AntonSmirnov"]
[Black "mishanick"]
[Result "1/2-1/2"]
[WhiteElo "2971"]
[BlackElo "3106"]
[TimeControl "180+1"]
[EndTime "15:26:46 PST"]
[Termination "Game drawn by repetition"]

1. e4 {[%clk 0:03:00.9]} 1... c5 {[%clk 0:02:59.8]} 2. Nf3 {[%clk 0:03:01]} 2...
e6 {[%clk 0:03:00.4]} 3. d4 {[%clk 0:03:01.1]} 3... cxd4 {[%clk 0:02:59.8]} 4.
Nxd4 {[%clk 0:03:02]} 4... Nf6 {[%clk 0:02:59.9]} 5. Nc3 {[%clk 0:03:01.9]} 5...
Nc6 {[%clk 0:03:00.3]} 6. Ndb5 {[%clk 0:03:01.7]} 6... Bc5 {[%clk 0:02:59]} 7.
Bf4 {[%clk 0:02:46.9]} 7... O-O {[%clk 0:02:56.3]} 8. Bc7 {[%clk 0:02:46.4]}
8... Qe7 {[%clk 0:02:56.3]} 9. Bd6 {[%clk 0:02:46.8]} 9... Bxd6 {[%clk 0:02:57]}
10. Qxd6 {[%clk 0:02:47.2]} 10... Qd8 {[%clk 0:02:57.3]} 11. Nd4 {[%clk
0:02:44.5]} 11... Ne8 {[%clk 0:02:31.4]} 12. Nxc6 {[%clk 0:02:43.5]} 12... bxc6
{[%clk 0:02:31.3]} 13. Qd2 {[%clk 0:02:43.4]} 13... d5 {[%clk 0:02:31]} 14. Bd3
{[%clk 0:02:43.3]} 14... Rb8 {[%clk 0:02:20.2]} 15. b3 {[%clk 0:02:43.1]} 15...
Qa5 {[%clk 0:02:07.5]} 16. O-O {[%clk 0:02:40.7]} 16... Nf6 {[%clk 0:02:02.3]}
17. Rfe1 {[%clk 0:02:31.4]} 17... Ba6 {[%clk 0:01:53]} 18. e5 {[%clk 0:02:16.4]}
18... Nd7 {[%clk 0:01:52.2]} 19. Bxa6 {[%clk 0:02:04.7]} 19... Qxa6 {[%clk
0:01:52.4]} 20. Re3 {[%clk 0:02:05.3]} 20... c5 {[%clk 0:01:50.5]} 21. Na4
{[%clk 0:01:59.1]} 21... Qc6 {[%clk 0:01:43.1]} 22. Rae1 {[%clk 0:01:58.1]}
22... Rb4 {[%clk 0:01:32.8]} 23. Rg3 {[%clk 0:01:56.5]} 23... g6 {[%clk
0:01:27.3]} 24. Qh6 {[%clk 0:01:53.5]} 24... Re8 {[%clk 0:01:20]} 25. Rh3 {[%clk
0:01:42.3]} 25... Nf8 {[%clk 0:01:20.2]} 26. c4 {[%clk 0:01:41.2]} 26... dxc4
{[%clk 0:01:14.1]} 27. Nc3 {[%clk 0:01:30]} 27... cxb3 {[%clk 0:01:14.1]} 28.
axb3 {[%clk 0:01:29.5]} 28... Rxb3 {[%clk 0:01:06.8]} 29. Rhe3 {[%clk
0:01:25.4]} 29... Nd7 {[%clk 0:00:55]} 30. Rh3 {[%clk 0:01:25.2]} 30... Nf8
{[%clk 0:00:55.3]} 31. Rhe3 {[%clk 0:01:25.5]} 31... Nd7 {[%clk 0:00:36.3]} 32.
Rh3 {[%clk 0:01:25.3]} 32... Nf8 {[%clk 0:00:36.5]} 1/2-1/2

[Event "Late-Titled-Tuesday-Blitz-January-16-2024"]
[Site "Chess.com"]
[Date "2024.01.16"]
[Round "8"]
[White "IPAchess"]
[Black "sergeikim"]
[Result "0-1"]
[WhiteElo "2382"]
[BlackElo "2554"]
[TimeControl "180+1"]
[EndTime "15:26:49 PST"]
[Termination "sergeikim won by resignation"]

1. d4 {[%clk 0:03:00.9]} 1... Nf6 {[%clk 0:02:59.5]} 2. c4 {[%clk 0:03:01.3]}
2... g6 {[%clk 0:02:59.5]} 3. Nf3 {[%clk 0:03:00.7]} 3... Bg7 {[%clk 0:02:58.7]}
4. Nc3 {[%clk 0:03:01.3]} 4... d6 {[%clk 0:02:59]} 5. Bg5 {[%clk 0:03:01.7]}
5... O-O {[%clk 0:02:58.9]} 6. e3 {[%clk 0:03:01.2]} 6... Nbd7 {[%clk
0:02:58.2]} 7. Be2 {[%clk 0:03:01.6]} 7... e5 {[%clk 0:02:58]} 8. Qc2 {[%clk
0:03:00.8]} 8... Re8 {[%clk 0:02:57.6]} 9. h3 {[%clk 0:02:59.7]} 9... c6 {[%clk
0:02:56.7]} 10. Rd1 {[%clk 0:02:55.3]} 10... h6 {[%clk 0:02:55.7]} 11. Bh4
{[%clk 0:02:55]} 11... Qe7 {[%clk 0:02:55.3]} 12. O-O {[%clk 0:02:53.8]} 12...
g5 {[%clk 0:02:50.6]} 13. Bg3 {[%clk 0:02:53.4]} 13... e4 {[%clk 0:02:50.9]} 14.
Nd2 {[%clk 0:02:52.3]} 14... Nf8 {[%clk 0:02:51.1]} 15. b4 {[%clk 0:02:48.7]}
15... Bf5 {[%clk 0:02:48.1]} 16. a4 {[%clk 0:02:35.3]} 16... Ng6 {[%clk
0:02:45.6]} 17. a5 {[%clk 0:02:35.4]} 17... a6 {[%clk 0:02:44.9]} 18. Qa4 {[%clk
0:02:30.4]} 18... h5 {[%clk 0:02:41.7]} 19. b5 {[%clk 0:02:29.5]} 19... h4
{[%clk 0:02:38.9]} 20. Bh2 {[%clk 0:02:29.3]} 20... Qd7 {[%clk 0:02:38.6]} 21.
bxc6 {[%clk 0:02:28.5]} 21... bxc6 {[%clk 0:02:38.2]} 22. d5 {[%clk 0:02:26.8]}
22... c5 {[%clk 0:02:30.7]} 23. Qxd7 {[%clk 0:02:27.7]} 23... Nxd7 {[%clk
0:02:30.7]} 24. Na4 {[%clk 0:02:20.2]} 24... Be5 {[%clk 0:02:16.9]} 25. Rb1
{[%clk 0:02:18.6]} 25... Rab8 {[%clk 0:02:15.7]} 26. Nb6 {[%clk 0:01:51.8]}
26... Nxb6 {[%clk 0:02:14.6]} 27. Rxb6 {[%clk 0:01:50.4]} 27... Rxb6 {[%clk
0:02:14.1]} 28. axb6 {[%clk 0:01:51.3]} 28... Rb8 {[%clk 0:02:13.6]} 29. Rb1
{[%clk 0:01:51.1]} 29... Rb7 {[%clk 0:02:13.8]} 30. Bd1 {[%clk 0:01:49.3]} 30...
Bxh2+ {[%clk 0:02:06.3]} 31. Kxh2 {[%clk 0:01:50.2]} 31... Ne5 {[%clk
0:02:05.9]} 32. Ba4 {[%clk 0:01:50.1]} 32... Bd7 {[%clk 0:01:47.6]} 33. Bxd7
{[%clk 0:01:16.5]} 33... Nxd7 {[%clk 0:01:47.3]} 34. Nxe4 {[%clk 0:01:17]} 34...
Rxb6 {[%clk 0:01:47.5]} 35. Rxb6 {[%clk 0:01:07.4]} 35... Nxb6 {[%clk
0:01:47.5]} 36. Nxd6 {[%clk 0:01:06.3]} 36... a5 {[%clk 0:01:47.2]} 37. Nb7
{[%clk 0:01:02.9]} 37... a4 {[%clk 0:01:46.6]} 38. Nxc5 {[%clk 0:01:03.3]} 38...
a3 {[%clk 0:01:46.3]} 39. Nb3 {[%clk 0:01:00.1]} 39... Nxc4 {[%clk 0:01:46.4]}
40. g3 {[%clk 0:00:55.1]} 40... Kf8 {[%clk 0:01:45]} 41. Kg2 {[%clk 0:00:54.9]}
41... a2 {[%clk 0:01:41.9]} 42. gxh4 {[%clk 0:00:52]} 42... gxh4 {[%clk
0:01:41.4]} 43. Kf1 {[%clk 0:00:48.3]} 43... Nd2+ {[%clk 0:01:39]} 0-1

[Event "Late-Titled-Tuesday-Blitz-January-16-2024"]
[Site "Chess.com"]
[Date "2024.01.16"]
[Round "8"]
[White "ChessSwole"]
[Black "thesupera12"]
[Result "1-0"]
[WhiteElo "2662"]
[BlackElo "2524"]
[TimeControl "180+1"]
[EndTime "15:27:14 PST"]
[Termination "ChessSwole won by resignation"]

1. e4 {[%clk 0:03:00.9]} 1... d5 {[%clk 0:02:58.6]} 2. exd5 {[%clk 0:03:01.4]}
2... Qxd5 {[%clk 0:02:59.1]} 3. Nc3 {[%clk 0:03:01.7]} 3... Qa5 {[%clk
0:02:59.8]} 4. d4 {[%clk 0:03:01.6]} 4... Nf6 {[%clk 0:02:59.8]} 5. Nf3 {[%clk
0:03:01.6]} 5... Bg4 {[%clk 0:02:56.6]} 6. h3 {[%clk 0:03:01]} 6... Bh5 {[%clk
0:02:56.1]} 7. Bd2 {[%clk 0:02:57.9]} 7... c6 {[%clk 0:02:50.7]} 8. Bc4 {[%clk
0:02:54.8]} 8... e6 {[%clk 0:02:49.9]} 9. Qe2 {[%clk 0:02:53.6]} 9... Bxf3
{[%clk 0:02:42.5]} 10. Qxf3 {[%clk 0:02:52.5]} 10... Nbd7 {[%clk 0:02:41.5]} 11.
g4 {[%clk 0:02:51.3]} 11... h6 {[%clk 0:02:37.2]} 12. O-O-O {[%clk 0:02:49.9]}
12... Qc7 {[%clk 0:02:33.1]} 13. h4 {[%clk 0:02:47.8]} 13... Nb6 {[%clk
0:02:27.8]} 14. Bb3 {[%clk 0:02:46.7]} 14... O-O-O {[%clk 0:02:27.9]} 15. g5
{[%clk 0:02:46.6]} 15... Nfd5 {[%clk 0:02:26.1]} 16. Ne4 {[%clk 0:02:40.8]}
16... h5 {[%clk 0:02:13.4]} 17. a3 {[%clk 0:02:38.9]} 17... Qe7 {[%clk
0:01:25.8]} 18. c4 {[%clk 0:02:30.9]} 18... Nc7 {[%clk 0:01:24.7]} 19. Bf4
{[%clk 0:02:29.3]} 19... g6 {[%clk 0:01:13.9]} 20. Be5 {[%clk 0:02:28.7]} 20...
Rh7 {[%clk 0:01:08.8]} 21. Bf6 {[%clk 0:02:25.1]} 21... Qe8 {[%clk 0:01:06.3]}
22. Bxd8 {[%clk 0:02:25.7]} 22... Qxd8 {[%clk 0:01:07]} 23. Kb1 {[%clk
0:02:17.1]} 23... Bg7 {[%clk 0:01:04.2]} 24. Qxf7 {[%clk 0:02:11]} 24... Qf8
{[%clk 0:00:58.7]} 25. Qxf8+ {[%clk 0:02:08.1]} 25... Bxf8 {[%clk 0:00:59.6]}
26. Nf6 {[%clk 0:02:08.1]} 26... Rf7 {[%clk 0:00:58.5]} 27. Rhe1 {[%clk
0:02:08.5]} 27... Be7 {[%clk 0:00:57.9]} 28. d5 {[%clk 0:02:06.5]} 28... exd5
{[%clk 0:00:44]} 29. cxd5 {[%clk 0:02:07.4]} 29... cxd5 {[%clk 0:00:38.7]} 30.
Nxd5 {[%clk 0:02:08.3]} 30... Ncxd5 {[%clk 0:00:10.5]} 31. Bxd5 {[%clk
0:02:09.2]} 31... Rg7 {[%clk 0:00:08.1]} 32. Be4 {[%clk 0:02:09.1]} 32... Bd8
{[%clk 0:00:06.7]} 33. Bxg6 {[%clk 0:01:58.1]} 33... Rxg6 {[%clk 0:00:06.6]} 34.
Re8 {[%clk 0:01:58.8]} 34... Nd7 {[%clk 0:00:02.8]} 35. Rc1+ {[%clk 0:01:57.2]}
35... Rc6 {[%clk 0:00:02.4]} 36. Rxc6+ {[%clk 0:01:55.5]} 36... bxc6 {[%clk
0:00:03.3]} 37. f4 {[%clk 0:01:52.7]} 37... Kc7 {[%clk 0:00:02.5]} 38. f5 {[%clk
0:01:52.2]} 38... Nc5 {[%clk 0:00:02]} 39. g6 {[%clk 0:01:48]} 39... Bxh4 {[%clk
0:00:02.9]} 40. g7 {[%clk 0:01:48.2]} 40... Ne6 {[%clk 0:00:02.6]} 41. Rxe6
{[%clk 0:01:48.1]} 1-0

[Event "Late-Titled-Tuesday-Blitz-January-16-2024"]
[Site "Chess.com"]
[Date "2024.01.16"]
[Round "8"]
[White "iturrizaga"]
[Black "FontVella8"]
[Result "1-0"]
[WhiteElo "3008"]
[BlackElo "2758"]
[TimeControl "180+1"]
[EndTime "15:27:22 PST"]
[Termination "iturrizaga won by resignation"]

1. d4 {[%clk 0:02:59.2]} 1... Nf6 {[%clk 0:03:00.2]} 2. Nf3 {[%clk 0:02:59.4]}
2... e6 {[%clk 0:03:00.7]} 3. Bf4 {[%clk 0:02:59.6]} 3... d5 {[%clk 0:03:00.4]}
4. e3 {[%clk 0:02:59.5]} 4... Bd6 {[%clk 0:03:01.1]} 5. Bg3 {[%clk 0:02:59.6]}
5... O-O {[%clk 0:03:00]} 6. Bd3 {[%clk 0:02:59.6]} 6... c5 {[%clk 0:03:00.6]}
7. dxc5 {[%clk 0:02:59.9]} 7... Bxc5 {[%clk 0:02:59.4]} 8. O-O {[%clk
0:02:59.2]} 8... Nc6 {[%clk 0:02:59.2]} 9. Nbd2 {[%clk 0:02:59.2]} 9... Bd6
{[%clk 0:02:55.7]} 10. c4 {[%clk 0:02:58.9]} 10... Bxg3 {[%clk 0:02:55.4]} 11.
hxg3 {[%clk 0:02:59.8]} 11... e5 {[%clk 0:02:53.8]} 12. cxd5 {[%clk 0:02:58.6]}
12... Qxd5 {[%clk 0:02:53.3]} 13. Qb1 {[%clk 0:02:57.3]} 13... Rd8 {[%clk
0:02:51.1]} 14. Bc4 {[%clk 0:02:54.8]} 14... Qa5 {[%clk 0:02:44.8]} 15. Ne4
{[%clk 0:02:53.9]} 15... Nd5 {[%clk 0:02:09.9]} 16. Neg5 {[%clk 0:02:43.9]}
16... h6 {[%clk 0:01:17.8]} 17. Qh7+ {[%clk 0:02:41.2]} 17... Kf8 {[%clk
0:01:18.1]} 18. Qh8+ {[%clk 0:02:21.9]} 18... Ke7 {[%clk 0:01:17.6]} 19. Qxg7
{[%clk 0:02:22.8]} 19... hxg5 {[%clk 0:01:15]} 20. Nxg5 {[%clk 0:02:23.7]} 20...
Be6 {[%clk 0:01:12.8]} 21. Nxe6 {[%clk 0:02:21.5]} 21... Kxe6 {[%clk 0:01:12.8]}
22. e4 {[%clk 0:02:21.1]} 22... Ne7 {[%clk 0:01:04]} 23. exd5+ {[%clk
0:02:19.2]} 23... Nxd5 {[%clk 0:01:04.2]} 24. Rad1 {[%clk 0:01:53.6]} 24... Qc5
{[%clk 0:00:53.9]} 25. Bb3 {[%clk 0:01:36.7]} 25... Rd6 {[%clk 0:00:11]} 26.
Rfe1 {[%clk 0:01:17.5]} 26... f6 {[%clk 0:00:11.1]} 27. Qxb7 {[%clk 0:01:09.2]}
27... Rad8 {[%clk 0:00:11]} 28. Rxd5 {[%clk 0:01:03.2]} 28... Rxd5 {[%clk
0:00:11.1]} 29. Rd1 {[%clk 0:01:03]} 1-0

[Event "Late-Titled-Tuesday-Blitz-January-16-2024"]
[Site "Chess.com"]
[Date "2024.01.16"]
[Round "8"]
[White "gxbg2000"]
[Black "SmirnovTimofey2000"]
[Result "1-0"]
[WhiteElo "2065"]
[BlackElo "1957"]
[TimeControl "180+1"]
[EndTime "15:27:32 PST"]
[Termination "gxbg2000 won on time"]

1. e4 {[%clk 0:02:59.3]} 1... e5 {[%clk 0:02:59.9]} 2. Nf3 {[%clk 0:03:00]} 2...
Nf6 {[%clk 0:03:00]} 3. d4 {[%clk 0:03:00.9]} 3... Nxe4 {[%clk 0:02:59.3]} 4.
dxe5 {[%clk 0:03:01]} 4... Bc5 {[%clk 0:02:59.2]} 5. Be3 {[%clk 0:02:54.7]} 5...
Bxe3 {[%clk 0:02:58.8]} 6. fxe3 {[%clk 0:02:55.6]} 6... Nc6 {[%clk 0:02:53.8]}
7. Bd3 {[%clk 0:02:54.9]} 7... Ng5 {[%clk 0:02:52]} 8. O-O {[%clk 0:02:53.1]}
8... O-O {[%clk 0:02:49.8]} 9. Nbd2 {[%clk 0:02:41.8]} 9... Qe7 {[%clk
0:02:32.5]} 10. Nxg5 {[%clk 0:02:41.4]} 10... Qxg5 {[%clk 0:02:31.2]} 11. Nf3
{[%clk 0:02:41.3]} 11... Qe7 {[%clk 0:02:29.2]} 12. Qd2 {[%clk 0:02:34.5]} 12...
Nxe5 {[%clk 0:02:27.1]} 13. Nxe5 {[%clk 0:02:34.5]} 13... Qxe5 {[%clk 0:02:28]}
14. Rf5 {[%clk 0:02:34.4]} 14... Qe7 {[%clk 0:02:19.1]} 15. Rh5 {[%clk
0:02:29.7]} 15... g6 {[%clk 0:02:13.6]} 16. Rd5 {[%clk 0:02:14.2]} 16... d6
{[%clk 0:02:10.1]} 17. Re1 {[%clk 0:02:13.5]} 17... Be6 {[%clk 0:01:44.9]} 18.
Rd4 {[%clk 0:02:12.9]} 18... c6 {[%clk 0:01:19]} 19. b3 {[%clk 0:02:10.9]} 19...
Rad8 {[%clk 0:01:14.1]} 20. Rf4 {[%clk 0:02:10.2]} 20... Bc8 {[%clk 0:00:48.4]}
21. Qf2 {[%clk 0:02:08.5]} 21... Rde8 {[%clk 0:00:39.3]} 22. e4 {[%clk 0:02:08]}
22... Qe5 {[%clk 0:00:37]} 23. Rh4 {[%clk 0:01:59.4]} 23... a6 {[%clk 0:00:35]}
24. Rf1 {[%clk 0:01:51.1]} 24... Kg7 {[%clk 0:00:34.8]} 25. Qe3 {[%clk
0:01:49.3]} 25... h5 {[%clk 0:00:25.1]} 26. Qf2 {[%clk 0:01:37.9]} 26... Re6
{[%clk 0:00:19.3]} 27. Rf4 {[%clk 0:01:37.5]} 27... Re7 {[%clk 0:00:14.6]} 28.
h3 {[%clk 0:01:37.1]} 28... d5 {[%clk 0:00:12.1]} 29. exd5 {[%clk 0:01:34.6]}
29... cxd5 {[%clk 0:00:02.8]} 30. Kh1 {[%clk 0:01:24.2]} 30... f5 {[%clk
0:00:01.5]} 31. Qb6 {[%clk 0:01:15.9]} 31... Qe6 {[%clk 0:00:01.3]} 32. Qd4+
{[%clk 0:01:13.9]} 1-0

[Event "Late-Titled-Tuesday-Blitz-January-16-2024"]
[Site "Chess.com"]
[Date "2024.01.16"]
[Round "8"]
[White "j_coca"]
[Black "Eloist"]
[Result "1-0"]
[WhiteElo "2524"]
[BlackElo "2438"]
[TimeControl "180+1"]
[EndTime "15:27:36 PST"]
[Termination "j_coca won on time"]

1. f4 {[%clk 0:02:59]} 1... d5 {[%clk 0:02:59.4]} 2. Nf3 {[%clk 0:02:58.7]} 2...
g6 {[%clk 0:02:59.6]} 3. e3 {[%clk 0:02:59.2]} 3... Bg7 {[%clk 0:02:59.7]} 4. d4
{[%clk 0:03:00.1]} 4... c5 {[%clk 0:02:57.1]} 5. c3 {[%clk 0:03:01]} 5... Nf6
{[%clk 0:02:54]} 6. Bd3 {[%clk 0:03:00.9]} 6... Bf5 {[%clk 0:02:52.2]} 7. O-O
{[%clk 0:03:00.7]} 7... Bxd3 {[%clk 0:02:51.5]} 8. Qxd3 {[%clk 0:03:00.4]} 8...
Nbd7 {[%clk 0:02:37.9]} 9. Nbd2 {[%clk 0:03:00]} 9... O-O {[%clk 0:02:37.2]} 10.
a3 {[%clk 0:02:57.6]} 10... Rc8 {[%clk 0:02:27.4]} 11. Ne5 {[%clk 0:02:56.4]}
11... e6 {[%clk 0:02:17.8]} 12. Rf3 {[%clk 0:02:55.4]} 12... c4 {[%clk
0:02:06.6]} 13. Qc2 {[%clk 0:02:52.9]} 13... b5 {[%clk 0:02:06.2]} 14. e4 {[%clk
0:02:53]} 14... dxe4 {[%clk 0:02:03.6]} 15. Nxe4 {[%clk 0:02:53.9]} 15... Nxe4
{[%clk 0:02:01.9]} 16. Qxe4 {[%clk 0:02:54.8]} 16... Nf6 {[%clk 0:02:00.9]} 17.
Qe2 {[%clk 0:02:50.8]} 17... h5 {[%clk 0:01:56.4]} 18. Bd2 {[%clk 0:02:50]}
18... a5 {[%clk 0:01:50]} 19. Raf1 {[%clk 0:02:49.4]} 19... b4 {[%clk 0:01:40]}
20. h3 {[%clk 0:02:45.5]} 20... bxa3 {[%clk 0:01:37.8]} 21. bxa3 {[%clk
0:02:45.7]} 21... Qd6 {[%clk 0:01:19.7]} 22. R1f2 {[%clk 0:02:38.2]} 22... h4
{[%clk 0:01:16.1]} 23. Nxc4 {[%clk 0:02:35.6]} 23... Qd5 {[%clk 0:01:01.1]} 24.
Nb6 {[%clk 0:02:33.8]} 24... Qa2 {[%clk 0:00:50.8]} 25. Nxc8 {[%clk 0:02:30.5]}
25... Rxc8 {[%clk 0:00:50.5]} 26. Bc1 {[%clk 0:02:20.8]} 26... Qb1 {[%clk
0:00:43.5]} 27. Qc2 {[%clk 0:02:16.2]} 27... Qb6 {[%clk 0:00:28.9]} 28. Qb2
{[%clk 0:02:04.6]} 28... Qc6 {[%clk 0:00:23.9]} 29. Bd2 {[%clk 0:01:54.8]} 29...
Ne4 {[%clk 0:00:23.6]} 30. Re2 {[%clk 0:01:53.9]} 30... Ng3 {[%clk 0:00:18.1]}
31. Re1 {[%clk 0:01:52.4]} 31... Qc7 {[%clk 0:00:14]} 32. Qb5 {[%clk 0:01:43.9]}
32... Rb8 {[%clk 0:00:13.3]} 33. Qd3 {[%clk 0:01:43]} 33... Rb3 {[%clk
0:00:12.9]} 34. a4 {[%clk 0:01:42.2]} 34... Ra3 {[%clk 0:00:12.2]} 35. Qb5
{[%clk 0:01:38.6]} 35... Bf8 {[%clk 0:00:08]} 36. c4 {[%clk 0:01:34.4]} 36...
Qd8 {[%clk 0:00:06]} 37. Rxa3 {[%clk 0:01:31.9]} 37... Bxa3 {[%clk 0:00:06]} 38.
Be3 {[%clk 0:01:32.3]} 38... Nf5 {[%clk 0:00:04.3]} 39. d5 {[%clk 0:01:31.5]}
39... Nxe3 {[%clk 0:00:02.2]} 40. Rxe3 {[%clk 0:01:32.4]} 40... exd5 {[%clk
0:00:01.7]} 41. cxd5 {[%clk 0:01:30]} 41... Qd6 {[%clk 0:00:01.2]} 42. Qe8+
{[%clk 0:01:28.1]} 1-0

[Event "Late-Titled-Tuesday-Blitz-January-16-2024"]
[Site "Chess.com"]
[Date "2024.01.16"]
[Round "8"]
[White "BardArtem"]
[Black "GlavkonVVS"]
[Result "1-0"]
[WhiteElo "2816"]
[BlackElo "2484"]
[TimeControl "180+1"]
[EndTime "15:27:37 PST"]
[Termination "BardArtem won by resignation"]

1. e4 {[%clk 0:03:00.9]} 1... Nf6 {[%clk 0:02:49.8]} 2. e5 {[%clk 0:03:00.7]}
2... Nd5 {[%clk 0:02:49.8]} 3. Bc4 {[%clk 0:03:01.1]} 3... Nb6 {[%clk
0:02:49.6]} 4. Bb3 {[%clk 0:03:01.4]} 4... c5 {[%clk 0:02:46.9]} 5. c3 {[%clk
0:02:56.7]} 5... c4 {[%clk 0:02:46.5]} 6. Bc2 {[%clk 0:02:56.9]} 6... Nc6 {[%clk
0:02:47.1]} 7. Nf3 {[%clk 0:02:57]} 7... d6 {[%clk 0:02:46.4]} 8. exd6 {[%clk
0:02:57.9]} 8... exd6 {[%clk 0:02:41]} 9. O-O {[%clk 0:02:57]} 9... Be7 {[%clk
0:02:41.4]} 10. d3 {[%clk 0:02:56.7]} 10... d5 {[%clk 0:02:14.5]} 11. dxc4
{[%clk 0:02:53.3]} 11... dxc4 {[%clk 0:02:14.6]} 12. Bf4 {[%clk 0:02:47.4]}
12... O-O {[%clk 0:02:11.8]} 13. Nbd2 {[%clk 0:02:45.9]} 13... Be6 {[%clk
0:02:11.4]} 14. Qe2 {[%clk 0:02:45]} 14... Qd5 {[%clk 0:02:02]} 15. Rad1 {[%clk
0:02:38.5]} 15... Qh5 {[%clk 0:01:55.4]} 16. Ne4 {[%clk 0:02:35.7]} 16... Rfe8
{[%clk 0:01:43]} 17. Ng3 {[%clk 0:02:26.4]} 17... Qg4 {[%clk 0:01:42.8]} 18. Qe4
{[%clk 0:02:14.7]} 18... Qg6 {[%clk 0:01:34.6]} 19. Qe2 {[%clk 0:02:14.5]} 19...
Qg4 {[%clk 0:01:34.5]} 20. Bc1 {[%clk 0:02:09.2]} 20... Bd5 {[%clk 0:01:30.7]}
21. Bxh7+ {[%clk 0:01:54.4]} 21... Kxh7 {[%clk 0:01:30.7]} 22. Ng5+ {[%clk
0:01:51.2]} 22... Qxg5 {[%clk 0:01:31]} 23. Bxg5 {[%clk 0:01:50]} 23... Bxg5
{[%clk 0:01:31.6]} 24. Qh5+ {[%clk 0:01:50.6]} 24... Bh6 {[%clk 0:01:31.6]} 25.
Rxd5 {[%clk 0:01:50.8]} 25... g6 {[%clk 0:01:25.7]} 26. Qf3 {[%clk 0:01:47.3]}
26... Kg8 {[%clk 0:01:16.2]} 27. Rd6 {[%clk 0:01:43.2]} 27... Ne5 {[%clk
0:01:10.3]} 28. Qxb7 {[%clk 0:01:39.2]} 28... Bf8 {[%clk 0:00:58.6]} 29. Rd2
{[%clk 0:01:33.9]} 29... Nd3 {[%clk 0:00:47.5]} 30. b4 {[%clk 0:01:19.4]} 30...
Re7 {[%clk 0:00:39.8]} 31. Qa6 {[%clk 0:01:18.7]} 31... Re5 {[%clk 0:00:32.4]}
32. a4 {[%clk 0:01:17.1]} 32... Re6 {[%clk 0:00:20.3]} 33. a5 {[%clk 0:01:08.6]}
33... Nd7 {[%clk 0:00:18.9]} 34. Qxc4 {[%clk 0:01:07.6]} 34... N7e5 {[%clk
0:00:19.1]} 35. Qd5 {[%clk 0:01:06.2]} 35... Rd6 {[%clk 0:00:15.5]} 36. Qxa8
{[%clk 0:01:05.7]} 1-0